[Event "Budapest IM-B ONE WEEK Feb 2024"]
[Site "Budapest"]
[Date "2024.02.27"]
[Round "3"]
[White "Mouhamad, Joachim"]
[Black "Polyik, Peter"]
[Result "1/2-1/2"]
[ECO "B67"]
[WhiteElo "2316"]
[BlackElo "2289"]
[Annotator "TA"]
[PlyCount "114"]
[EventDate "2024.02.25"]
[EventType "tourn"]
[EventCountry "HUN"]
[SourceTitle "playchess.com"]
[Source "ChessBase"]
[SourceQuality "1"]
[TimeControl "5400+30"]

{[%evp 16,114,41,16,33,29,39,40,43,31,34,23,39,36,43,48,41,41,42,40,43,54,41,42,47,29,29,25,29,31,27,35,55,48,52,50,51,58,54,59,70,66,71,70,83,78,85,88,98,90,90,87,102,85,168,196,195,158,165,174,394,375,309,41,80,30,30,30,30,30,30,30,30,30,30,30,30,0,0,0,30,30,30,30,474,0,0,0,0,0,0,0,0,0,0,0,0,0,0,0,0]} 1. e4 {[%emt 0:00:04]} c5 {[%emt 0:04:50]} 2. Nf3 {[%emt 0:00:13]} d6 {[%emt 0:00:05]} 3. d4 {[%emt 0:00:10]} cxd4 {[%emt 0:00:04]} 4. Nxd4 {[%emt 0:00:08]} Nf6 {[%emt 0:00:06]} 5. Nc3 {[%emt 0:00:08]} Nc6 {[%emt 0:00:08]} 6. Bg5 {[%emt 0:00:22]} e6 {[%emt 0:00:13]} 7. Qd2 {[%emt 0:00:12]} a6 {[%emt 0:00:07]} 8. O-O-O {[%emt 0:00:16]} Bd7 {[%emt 0:00:07]} 9. Kb1 {[%emt 0:00:41]} Nxd4 {[%emt 0:00:32] Der moderne Zug. B67: Sizilianisch (Richter/Rauser-Angriff).} 10. Qxd4 {[%emt 0:00:08]} Be7 {[%emt 0:00:09]} 11. f4 {[%emt 0:00:41]} Bc6 {[%emt 0:02:02]} 12. f5 {[%emt 0:00:38]} Qa5 {[%emt 0:04:51]} 13. Bc4 {[%emt 0:00:31]} exf5 {[%emt 0:07:46]} 14. Rhf1 {[%emt 0:00:35]} fxe4 {[%emt 0:01:52] [#]} 15. Nxe4 $1 {[%emt 0:04:40]} Nxe4 {[%emt 0:11:30]} 16. Qxg7 $146 {[%emt 0:01:09] Bxe7 wäre nun fies.} ({Predecessor:} 16. Bxf7+ Kd7 17. Bxe7 Kxe7 18. Bg6 Qe5 19. Bxe4 Bxe4 20. Rfe1 {½-½ Tang,A (1895)-Espinosa,P (2238) North American-ch U20 2023 (2)}) 16... O-O-O $1 {[%emt 0:00:23]} 17. Bxe7 {[%emt 0:00:27]} Nd2+ $1 {[%emt 0:03:39] [#]} 18. Rxd2 $1 {[%emt 0:00:11]} Qxd2 {[%emt 0:00:11]} 19. Bxd8 {[%emt 0:00:14]} Rxd8 {[%emt 0:00:09]} 20. g4 {[%emt 0:01:23]} Be4 {[%emt 0:07:05]} 21. Qc3 {[%emt 0:00:11]} (21. Rxf7 $2 Qe1#) (21. Qxf7 Qxc2+ (21... Bxc2+ 22. Ka1 $11) 22. Ka1 Kb8 $11) 21... Qxc3 {[%emt 0:00:12]} (21... Qxh2 22. Bd5+ (22. Bxa6+ Kb8 $14) 22... Kb8 23. Bxe4 $18) 22. bxc3 $11 {[%emt 0:00:08][%mdl 4096] Endspiel. KRB-KRB} d5 {[%emt 0:07:46]} 23. Bd3 {[%emt 0:00:28]} Rd7 {[%emt 0:15:43]} 24. Kc1 {[%emt 0:02:00]} Kd8 {[%emt 0:03:16]} 25. Rf6 $1 {[%emt 0:05:48]} Ke7 {[%emt 0:02:13]} 26. Rb6 {[%emt 0:00:12]} f6 {[%emt 0:03:46]} 27. Kd2 {[%emt 0:00:43]} Kf7 {[%emt 0:00:11]} 28. Ke3 {[%emt 0:01:29]} Re7 {[%emt 0:01:14]} 29. Kd4 {[%emt 0:06:33]} Bf3 {[%emt 0:07:10]} 30. h3 {[%emt 0:04:54] Weiß steht aktiver.} (30. Bxh7 Bxg4 31. h4 (31. Kxd5 Bf3+ 32. Kd6 Re6+ 33. Kc7 Re5 $11) 31... Bf3 $14) 30... h5 {[%emt 0:01:21]} 31. gxh5 {[%emt 0:01:31]} Bxh5 {[%emt 0:00:13]} 32. c4 $1 {[%emt 0:00:17]} dxc4 {[%emt 0:01:11]} 33. Bxc4+ {[%emt 0:00:02]} Kg6 {[%emt 0:02:56]} 34. Bd5 {[%emt 0:01:37] Gegen Bf3 gerichtet.} Rd7 {[%emt 0:00:50] [#]} (34... Bd1 $16) 35. c4 $1 $18 {[%emt 0:00:30]} (35. Rxb7 Rxd5+ 36. Kxd5 Bf3+ 37. Kd4 Bxb7 $19) 35... Bf3 {[%emt 0:00:34]} 36. Kc5 {[%emt 0:02:05]} Bxd5 {[%emt 0:00:11]} 37. cxd5 $16 {[%emt 0:00:08] KR-KR} Kf5 $2 {[%emt 0:03:40]} (37... Kg7 {war angesagt.} 38. Rb3 Kf8) 38. a4 $18 {[%emt 0:43:52]} Rh7 {[%emt 0:00:52] [#]} 39. a5 $2 {[%emt 0:11:35]} (39. h4 $1 $18) 39... Rxh3 $14 {[%emt 0:03:15]} 40. Rxb7 {[%emt 0:00:02]} (40. Rb1 $16) 40... Ra3 $1 $11 {[%emt 0:00:11]} 41. d6 {[%emt 0:03:23] Kc6 ist eine echte Drohung.} Rxa5+ {[%emt 0:00:13]} 42. Kc6 {[%emt 0:00:18] Beabsichtigt d7 und Matt.} Ra1 {[%emt 0:00:06]} 43. d7 {[%emt 0:02:51][%mdl 1024] Weiss hat Kompensation.} Rc1+ {[%emt 0:00:51]} 44. Kd6 {[%emt 0:01:20]} Rd1+ {[%emt 0:01:06]} 45. Ke7 {[%emt 0:00:17]} Re1+ {[%emt 0:00:27]} 46. Kd6 {[%emt 0:02:39]} ({Jedoch nicht} 46. Kf8 Rd1 47. Ke7 Re1+ 48. Kf7 (48. Kf8 Rd1 $16) 48... Rd1 $16) 46... Rd1+ $1 {[%emt 0:00:05]} 47. Kc7 {[%emt 0:00:15]} Rc1+ {[%emt 0:00:37]} 48. Kb8 {[%emt 0:00:08]} Rd1 {[%emt 0:00:04]} 49. Kc8 {[%emt 0:00:10]} Ke4 $2 {[%emt 0:00:53][%mdl 8192]} (49... Ke6 $1 $11) 50. d8=Q $2 {[%emt 0:01:59]} ({Lieber nicht} 50. d8=R Rxd8+ 51. Kxd8 f5 $11) ({Besser ist} 50. Rb1 $18 Rxb1 51. d8=Q (51. d8=R $2 {verliert.} f5 $19)) 50... Rxd8+ {[%emt 0:00:04]} 51. Kxd8 {[%emt 0:00:05] KR-KPP} f5 {[%emt 0:00:04][%cal Bf6f5,Bf5f4,Bf4f3,Bf3f2][%mdl 32]} 52. Ke7 {[%emt 0:03:38]} f4 {[%emt 0:00:07]} 53. Kf6 {[%emt 0:01:11] Weiss will mit Rf7 Matt setzen.} f3 {[%emt 0:00:28]} 54. Kg5 {[%emt 0:01:08] jetzt Rf7 und aus.} f2 {[%emt 0:00:25]} 55. Rf7 {[%emt 0:00:47]} Ke3 $1 {[%emt 0:00:05]} 56. Kg4 {[%emt 0:00:11] Weiss droht Kg3 und Matt.} Ke2 $1 {[%emt 0:00:04]} 57. Re7+ {[%emt 0:00:11]} Kd2 {[%emt 0:00:05]} 1/2-1/2

[Event "Budapest IM-B ONE WEEK Feb 2024"]
[Site "Budapest"]
[Date "2024.02.27"]
[Round "3"]
[White "Velikic, Adela"]
[Black "Haszon, David"]
[Result "1-0"]
[ECO "D31"]
[WhiteElo "2266"]
[BlackElo "2245"]
[Annotator "TA"]
[PlyCount "75"]
[EventDate "2024.02.25"]
[EventType "tourn"]
[EventCountry "HUN"]
[SourceTitle "playchess.com"]
[Source "ChessBase"]
[SourceQuality "1"]
[TimeControl "5400+30"]

{[%evp 9,75,22,22,28,30,22,16,25,46,23,30,30,62,45,53,54,68,26,25,22,20,21,25,18,33,33,35,27,23,32,72,63,72,71,100,59,107,51,66,57,107,96,136,114,108,123,127,126,163,159,124,126,183,199,200,197,624,284,275,282,283,68,68,0,102,85,744,727]} 1. d4 {[%emt 0:00:05]} d5 {[%emt 0:00:19]} 2. c4 {[%emt 0:00:09]} e6 {[%emt 0:00:07]} 3. Nc3 {[%emt 0:00:08]} a6 {[%emt 0:00:08]} 4. cxd5 {[%emt 0:00:32]} exd5 {[%emt 0:00:10]} 5. Nf3 {[%emt 0:00:13]} h6 {[%emt 0:00:10]} 6. Bf4 {[%emt 0:00:20]} Nf6 {[%emt 0:00:10]} 7. e3 {[%emt 0:00:20]} Bd6 {[%emt 0:00:14]} 8. Be5 {[%emt 0:00:24] The position is equal.} Be6 {[%emt 0:02:23]} 9. Bd3 {[%emt 0:24:05]} Nc6 {[%emt 0:01:46]} 10. O-O {[%emt 0:16:15]} Bxe5 {[%emt 0:08:04]} 11. Nxe5 {[%emt 0:01:14]} Nxe5 {[%emt 0:00:58]} 12. dxe5 {[%emt 0:00:06]} Ng4 {[%emt 0:01:14][%cal Bf6g4,Bg4e5,Be5c4,Bc4b6,Bb6c8,Bc8d6,Bd6f5,Bf5e7][%mdl 32]} 13. Be2 {[%emt 0:08:07]} Nxe5 {[%emt 0:10:01]} 14. f4 {[%emt 0:03:49]} Nc4 {[%emt 0:03:04]} 15. Qd4 {[%emt 0:04:41]} f6 $1 {[%emt 0:18:23]} (15... Nxb2 16. Qxg7 Ke7 17. f5 $18) 16. e4 $36 {[%emt 0:15:05][%cal Re4d5][%mdl 2048] White has some pressure.} O-O {[%emt 0:03:50]} 17. exd5 {[%emt 0:02:55]} Nb6 {[%emt 0:02:45]} 18. Rad1 {[%emt 0:01:46]} Bf7 {[%emt 0:01:23]} 19. Bf3 {[%emt 0:01:52]} Nc8 {[%emt 0:01:54]} 20. Ne4 {[%emt 0:03:02][%cal Bc3e4,Be4c5,Bc5d7,Bd7b6][%mdl 32]} Nd6 {[%emt 0:01:00]} 21. Nc5 $1 {[%emt 0:03:12]} Nf5 {[%emt 0:03:13]} 22. Qc3 {[%emt 0:04:40]} Qd6 {[%emt 0:16:38] [#] Inhibits Ne6.} (22... Re8 $14) 23. Bg4 {[%emt 0:04:31]} (23. Nxb7 Qb6+ 24. Nc5 Rfe8) (23. Kh1 $1 $16) 23... Ne7 $14 {[%emt 0:03:14]} 24. Be6 {[%emt 0:00:39]} Bxe6 {[%emt 0:06:32]} (24... Rad8 $14) 25. dxe6 $16 {[%emt 0:00:49]} Qc6 {[%emt 0:01:42]} 26. Nd7 {[%emt 0:01:25] Qxc6 is the strong threat.} Qxc3 {[%emt 0:04:52]} 27. bxc3 {[%emt 0:00:04]} Rfe8 {[%emt 0:00:36]} 28. f5 {[%emt 0:00:29] White has more active pieces.} c6 {[%emt 0:03:39]} 29. Nb6 {[%emt 0:01:54]} Rad8 {[%emt 0:00:08] And now ...Rxd1 would win.} 30. g4 {[%emt 0:00:28]} h5 {[%emt 0:03:10] [#]} 31. h3 $1 $18 {[%emt 0:00:30]} (31. gxh5 Rxd1 32. Rxd1 Nxf5 $15) 31... hxg4 {[%emt 0:00:06]} 32. hxg4 {[%emt 0:00:02]} g6 $2 {[%emt 0:00:42]} (32... Rxd1 33. Rxd1 g6) 33. Nd7 {[%emt 0:01:00]} (33. Rxd8 $142 Rxd8 34. g5 Nxf5 35. gxf6) 33... Kg7 {[%emt 0:00:16] [#]} 34. g5 $1 {[%emt 0:00:48][%mdl 512]} Ng8 {[%emt 0:00:52]} 35. gxf6+ $2 {[%emt 0:01:45]} (35. Rd3 $18 gxf5 36. gxf6+ Nxf6 37. Rg3+ (37. Rxf5 Rxe6 38. Rg3+ Kf7 $17) 37... Kh6 38. Nxf6 Rxe6 39. Rxf5 Rd1+ 40. Kg2 Re2+ 41. Kh3 Rh1+ 42. Kg4) 35... Nxf6 $14 {[%emt 0:00:16]} 36. fxg6 {[%emt 0:00:30]} (36. Rd3 $14) 36... Rxe6 {[%emt 0:03:13]} (36... Nxd7 $1 $11 37. Rf7+ (37. Rxd7+ $2 {too greedy.} Rxd7 38. exd7 Rd8 $17) 37... Kxg6 38. Rfxd7 (38. Rdxd7 Rxd7 39. Rxd7 Rxe6 $11) 38... Rxd7 39. Rxd7 (39. exd7 Rd8 $17) 39... Kf5 (39... Rxe6 40. Rxb7 Re2 41. a4 $11)) 37. Nc5 $1 $16 {[%emt 0:00:13][%csl LRb7,LRd8,LRe6]} Ree8 {[%emt 0:00:55][%mdl 8192]} (37... Red6 $16 38. Ne6+ Rxe6 39. Rxd8 Kxg6) 38. Rxd8 {[%emt 0:00:10] Weighted Error Value: White=0.38/Black=0.33.  Loses game:     	---       	Black=1      Missed win:     	White=1     	---        Mistake:       	White=3     	Black=5      Inaccurate:     	White=2     	Black=4      OK:         	White=9     	Black=15     Best:        	White=2     	Black=1      Strong:       	White=2     	Black=1} ({Stronger than} 38. Nxb7 Rxd1 39. Rxd1 Re3 $11) 1-0

[Event "Budapest IM-B ONE WEEK Feb 2024"]
[Site "Budapest"]
[Date "2024.02.27"]
[Round "3"]
[White "Poysti, Nathanael"]
[Black "Nemeth, Zoltan"]
[Result "1-0"]
[ECO "A26"]
[WhiteElo "2163"]
[BlackElo "2194"]
[Annotator "RC"]
[PlyCount "115"]
[EventDate "2024.02.25"]
[EventType "tourn"]
[EventCountry "HUN"]
[SourceTitle "playchess.com"]
[Source "ChessBase"]
[SourceQuality "1"]
[TimeControl "5400+30"]

1. c4 {[%emt 0:00:03]} g6 {[%emt 0:02:21]} 2. g3 {[%emt 0:00:15]} Bg7 {[%emt 0:00:05]} 3. Bg2 {[%emt 0:00:05]} e5 {[%emt 0:00:50]} 4. Nc3 {[%emt 0:00:35]} Nc6 {[%emt 0:01:10]} 5. d3 {[%emt 0:01:06]} d6 {[%emt 0:00:21]} 6. e4 {[%emt 0:00:57]} Nge7 {[%emt 0:01:35]} 7. Nge2 {[%emt 0:00:16]} Nd4 {[%emt 0:03:43]} 8. O-O {[%emt 0:04:35]} O-O {[%emt 0:00:26]} 9. b4 {[%emt 0:02:17]} c6 {[%emt 0:01:45]} 10. Nxd4 {[%emt 0:01:47]} exd4 {[%emt 0:00:19]} 11. Ne2 {[%emt 0:00:05]} Bg4 {[%emt 0:11:45]} 12. h3 {[%emt 0:05:09]} Bxe2 {[%emt 0:00:55]} 13. Qxe2 {[%emt 0:00:01]} Qd7 {[%emt 0:01:24]} 14. Bg5 {[%emt 0:05:19]} f6 {[%emt 0:02:32]} 15. Bf4 {[%emt 0:00:24]} Rae8 {[%emt 0:01:04]} 16. Qc2 {[%emt 0:01:31]} f5 {[%emt 0:09:18]} 17. Rae1 {[%emt 0:10:31]} fxe4 {[%emt 0:01:51]} 18. Rxe4 {[%emt 0:04:35]} d5 {[%emt 0:03:06]} 19. Re2 {[%emt 0:03:57]} dxc4 {[%emt 0:01:53]} 20. Qxc4+ {[%emt 0:00:50]} Nd5 {[%emt 0:04:31]} 21. Rfe1 {[%emt 0:00:57]} Rxe2 {[%emt 0:01:37]} 22. Rxe2 {[%emt 0:00:01]} Rf7 {[%emt 0:00:13]} 23. Bxd5 {[%emt 0:05:36]} cxd5 {[%emt 0:01:10]} 24. Qc5 {[%emt 0:01:11]} b6 {[%emt 0:05:14]} 25. Qd6 {[%emt 0:00:14]} Qf5 {[%emt 0:00:13]} 26. Re8+ {[%emt 0:03:45]} Bf8 {[%emt 0:06:21]} 27. Qe5 {[%emt 0:03:40]} Qxe5 {[%emt 0:01:53]} 28. Bxe5 {[%emt 0:01:40]} Rd7 {[%emt 0:01:10]} 29. b5 {[%emt 0:03:50]} Kf7 {[%emt 0:05:11]} 30. Rc8 {[%emt 0:00:33]} Ke6 {[%emt 0:12:43]} 31. Bxd4 {[%emt 0:09:14]} Bg7 {[%emt 0:04:00]} 32. Rc6+ {[%emt 0:05:23]} Kf5 {[%emt 0:07:03]} 33. Be3 {[%emt 0:02:23]} d4 {[%emt 0:00:12]} 34. g4+ {[%emt 0:02:10]} Ke5 {[%emt 0:00:05]} 35. f4+ {[%emt 0:00:27]} Kd5 {[%emt 0:00:05]} 36. Bd2 {[%emt 0:01:24]} Bf8 {[%emt 0:01:30]} 37. Kf2 {[%emt 0:02:14]} Bc5 {[%emt 0:00:57]} 38. Rc8 {[%emt 0:00:40]} a6 {[%emt 0:01:46]} 39. a4 {[%emt 0:05:30]} axb5 {[%emt 0:01:18]} 40. axb5 {[%emt 0:00:02]} Ra7 {[%emt 0:00:33]} 41. Rd8+ {[%emt 0:03:55]} Ke6 {[%emt 0:00:07]} 42. Kf3 {[%emt 0:01:00]} Ra2 {[%emt 0:00:07]} 43. Be1 {[%emt 0:00:21]} Kf7 {[%emt 0:02:13]} 44. Rd7+ {[%emt 0:03:46]} Kg8 {[%emt 0:00:02]} 45. f5 {[%emt 0:01:19]} Rh2 {[%emt 0:01:07]} 46. Bg3 {[%emt 0:00:26]} Rd2 {[%emt 0:00:17]} 47. Ke4 {[%emt 0:00:11]} Re2+ {[%emt 0:00:08]} 48. Kd5 {[%emt 0:00:25]} gxf5 {[%emt 0:02:20]} 49. gxf5 {[%emt 0:00:01]} Re3 {[%emt 0:00:09]} 50. Be5 {[%emt 0:00:17]} Rxh3 {[%emt 0:02:28]} 51. Ke6 {[%emt 0:00:36]} Bf8 {[%emt 0:01:05]} 52. Rxd4 {[%emt 0:01:52]} h5 {[%emt 0:01:10]} 53. Rd8 {[%emt 0:00:28]} h4 {[%emt 0:00:39]} 54. f6 {[%emt 0:02:55]} Rf3 {[%emt 0:00:05]} 55. Bd6 {[%emt 0:01:04]} Rxd3 {[%emt 0:01:23]} 56. Rxf8+ {[%emt 0:00:17]} Kh7 {[%emt 0:00:01]} 57. f7 {[%emt 0:00:43]} h3 {[%emt 0:00:40]} 58. Rh8+ {[%emt 0:00:31]} 1-0

[Event "Budapest IM-B ONE WEEK Feb 2024"]
[Site "Budapest"]
[Date "2024.02.27"]
[Round "3"]
[White "Golis, Wiktor"]
[Black "Skytte, Rasmus"]
[Result "0-1"]
[ECO "B01"]
[WhiteElo "2123"]
[BlackElo "2342"]
[Annotator "TA"]
[PlyCount "64"]
[EventDate "2024.02.25"]
[EventType "tourn"]
[EventCountry "HUN"]
[SourceTitle "playchess.com"]
[Source "ChessBase"]
[SourceQuality "1"]
[TimeControl "5400+30"]

{[%evp 19,64,44,52,49,41,46,50,47,46,42,58,50,53,53,53,57,64,50,87,80,70,41,79,72,66,0,0,0,0,0,0,0,0,0,0,-525,-57,-31,-32,-254,-253,-249,-251,-1631,-1595,-29992,-29990]} 1. e4 {[%emt 0:00:04]} d5 {[%emt 0:11:03]} 2. exd5 {[%emt 0:00:10]} Qxd5 {[%emt 0:00:08]} 3. Nc3 {[%emt 0:00:12]} Qa5 {[%emt 0:00:04]} 4. d4 {[%emt 0:00:08]} Nf6 {[%emt 0:00:05]} 5. Nf3 {[%emt 0:00:10]} Bf5 {[%emt 0:00:08]} 6. Ne5 {[%emt 0:01:06]} c6 {[%emt 0:00:08]} 7. Bc4 {[%emt 0:00:21]} e6 {[%emt 0:00:12]} 8. g4 {[%emt 0:01:27]} Bg6 {[%emt 0:01:15]} 9. h4 {[%emt 0:02:09][%cal Bh2h4,Bh4h5][%mdl 32]} Nbd7 {[%emt 0:00:26]} 10. Nxd7 {[%emt 0:01:13]} Nxd7 {[%emt 0:00:34]} 11. h5 {[%emt 0:00:42]} Be4 {[%emt 0:00:08]} 12. O-O {[%emt 0:00:43]} Bd5 {[%emt 0:01:19]} 13. Nxd5 {[%emt 0:01:13] White is slightly better.} cxd5 {[%emt 0:00:10]} 14. Bd3 {[%emt 0:00:17]} Bd6 {[%emt 0:00:55]} 15. Qf3 {[%emt 0:01:56]} h6 {[%emt 0:05:16]} 16. c3 {[%emt 0:03:57]} Rf8 {[%emt 0:02:48]} 17. a4 {[%emt 0:05:24]} O-O-O {[%emt 0:05:00]} 18. Be3 {[%emt 0:14:51]} f5 {[%emt 0:09:39]} 19. gxf5 {[%emt 0:02:59]} Kb8 {[%emt 0:03:52]} 20. Rfc1 {[%emt 0:11:06]} e5 {[%emt 0:10:21]} 21. b4 {[%emt 0:06:40]} Qc7 {[%emt 0:00:17] ...e4 is the strong threat.} 22. Be2 {[%emt 0:16:57]} ({Better is} 22. Qxd5 $14 Nf6 23. Qf3) 22... e4 $11 {[%emt 0:06:31]} 23. Qg4 {[%emt 0:04:13][%cal Oc3c4]} Nb6 {[%emt 0:01:10]} 24. Kh1 {[%emt 0:06:24]} (24. a5 $5 Nc4 $8 25. a6 $14 (25. Bxc4 Qxc4 26. a6 Qc8 $11)) 24... Nc4 {[%emt 0:03:33]} 25. a5 {[%emt 0:06:13]} Rf7 {[%emt 0:04:29]} 26. b5 {[%emt 0:07:59][%cal Ob5b6]} Qe7 {[%emt 0:02:44]} 27. Ra4 $2 {[%emt 0:04:25][%mdl 8192]} (27. Bxc4 $11 {and White is okay.} dxc4 28. Rg1) 27... Rdf8 $2 {[%emt 0:02:52]} (27... Nxe3 $19 28. fxe3 Rxf5) 28. Bxc4 $15 {[%emt 0:00:53]} dxc4 {[%emt 0:00:08]} 29. b6 $2 {[%emt 0:00:31] [#] Now White is beyond hope.} (29. Rxc4 Rxf5 30. b6 a6 $17) (29. a6 $1 $15) 29... a6 $1 $19 {[%emt 0:00:48]} 30. Rxc4 {[%emt 0:00:17]} Rxf5 {[%emt 0:00:14][%cal Oe7f7] Hoping for ...Qf7!} 31. Ra4 $2 {[%emt 0:00:46]} (31. Rc5 Bxc5 32. dxc5) 31... Qf7 {[%emt 0:01:10]} 32. Kg2 {[%emt 0:00:29] [#]} Rg5 $1 {[%emt 0:05:35][%mdl 512] Weighted Error Value: White=0.95/Black=0.29 (precise) .  Loses game:     	White=2     	---        Missed win:     	---       	Black=1      Mistake:       	White=2     	---        Inaccurate:     	White=2     	Black=2      OK:         	White=9     	Black=10     Best:        	White=2     	Black=1      Strong:       	---       	Black=1} 0-1

[Event "Budapest IM-B ONE WEEK Feb 2024"]
[Site "Budapest"]
[Date "2024.02.28"]
[Round "4.1"]
[White "Skytte, Rasmus"]
[Black "Nemeth, Zoltan"]
[Result "1/2-1/2"]
[ECO "C42"]
[WhiteElo "2342"]
[BlackElo "2194"]
[Annotator "TA"]
[PlyCount "27"]
[EventDate "2024.02.25"]
[EventType "tourn"]
[EventCountry "HUN"]
[SourceTitle "playchess.com"]
[Source "ChessBase"]
[SourceQuality "1"]
[TimeControl "5400+30"]

{[%evp 18,27,27,33,40,36,37,41,56,22,56,36]} 1. e4 {[%emt 0:00:06]} e5 {[%emt 0:00:22]} 2. Nf3 {[%emt 0:00:35]} Nf6 {[%emt 0:00:06][%cal Bg8f6,Bf6e4,Be4d2][%mdl 32]} 3. Nxe5 {[%emt 0:01:00]} d6 {[%emt 0:00:05]} 4. Nf3 {[%emt 0:00:18]} Nxe4 {[%emt 0:00:07]} 5. d4 {[%emt 0:00:35]} d5 {[%emt 0:00:05]} 6. Bd3 {[%emt 0:01:15]} Nc6 {[%emt 0:00:21]} 7. O-O {[%emt 0:01:36]} Be7 {[%emt 0:05:52]} 8. Nbd2 {[%emt 0:00:45]} Nxd2 {[%emt 0:01:05]} 9. Bxd2 {[%emt 0:00:10][%cal Bc1d2,Bd2f4,Bf4d6][%mdl 32]} Bg4 {[%emt 0:04:19][%cal Bc8g4,Bg4h5,Bh5g6][%mdl 32]} 10. c3 {[%emt 0:00:40]} O-O {[%emt 0:04:01]} 11. h3 {[%emt 0:00:16]} Bh5 {[%emt 0:00:16]} 12. g3 {[%emt 0:02:01]} Bg6 {[%emt 0:00:33]} 13. Bf4 {[%emt 0:08:18]} Bd6 {[%emt 0:01:15]} 14. Bxd6 {[%emt 0:02:12] White took control after the opening.   Weighted Error Value: White=0.09 (flawless) /Black=0.12 (very precise) .  Inaccurate:     	White=1     	Black=1      OK:         	White=1     	Black=1} 1/2-1/2

[Event "Budapest IM-B ONE WEEK Feb 2024"]
[Site "Budapest"]
[Date "2024.02.28"]
[Round "4.2"]
[White "Matyassy, Lazar"]
[Black "Poysti, Nathanael"]
[Result "1/2-1/2"]
[ECO "A46"]
[WhiteElo "2176"]
[BlackElo "2163"]
[Annotator "RC"]
[PlyCount "49"]
[EventDate "2024.02.25"]
[EventType "tourn"]
[EventCountry "HUN"]
[SourceTitle "playchess.com"]
[Source "ChessBase"]
[SourceQuality "1"]
[TimeControl "5400+30"]

1. d4 {[%emt 0:00:06]} Nf6 {[%emt 0:00:07]} 2. Nf3 {[%emt 0:00:04]} e6 {[%emt 0:00:11]} 3. Bf4 {[%emt 0:00:07]} d5 {[%emt 0:00:05]} 4. e3 {[%emt 0:00:07]} Bd6 {[%emt 0:00:11]} 5. Ne5 {[%emt 0:00:06]} O-O {[%emt 0:01:27]} 6. Nd2 {[%emt 0:00:39]} b6 {[%emt 0:02:10]} 7. g4 {[%emt 0:08:36]} Bb7 {[%emt 0:04:20]} 8. Qf3 {[%emt 0:04:13]} c5 {[%emt 0:05:45]} 9. h4 {[%emt 0:14:36]} Nc6 {[%emt 0:02:37]} 10. g5 {[%emt 0:05:45]} Ne4 {[%emt 0:00:15]} 11. Nxe4 {[%emt 0:03:18]} dxe4 {[%emt 0:00:03]} 12. Qg3 {[%emt 0:00:28]} Qc7 {[%emt 0:23:05]} 13. Nxc6 {[%emt 0:07:48]} Bxf4 {[%emt 0:00:07]} 14. Qxf4 {[%emt 0:00:07]} Qxc6 {[%emt 0:01:39]} 15. O-O-O {[%emt 0:01:38]} Rac8 {[%emt 0:05:38]} 16. c3 {[%emt 0:02:59]} Qa4 {[%emt 0:03:58]} 17. a3 {[%emt 0:06:27]} Rfd8 {[%emt 0:11:10]} 18. Bg2 {[%emt 0:03:32]} cxd4 {[%emt 0:07:41]} 19. exd4 {[%emt 0:00:57]} Rxd4 {[%emt 0:18:45]} 20. Rxd4 {[%emt 0:00:18]} Qxd4 {[%emt 0:00:02]} 21. Rd1 {[%emt 0:00:08]} Rxc3+ {[%emt 0:02:47]} 22. bxc3 {[%emt 0:00:06]} Qxc3+ {[%emt 0:00:01]} 23. Kb1 {[%emt 0:00:08]} Qb3+ {[%emt 0:00:22]} 24. Kc1 {[%emt 0:00:05]} Qc3+ {[%emt 0:05:36]} 25. Kb1 {[%emt 0:00:11]} 1/2-1/2

[Event "Budapest IM-B ONE WEEK Feb 2024"]
[Site "Budapest"]
[Date "2024.02.28"]
[Round "4.3"]
[White "Haszon, David"]
[Black "Krizsany, Laszlo"]
[Result "1/2-1/2"]
[ECO "C01"]
[WhiteElo "2245"]
[BlackElo "2346"]
[Annotator "TA"]
[PlyCount "20"]
[EventDate "2024.02.25"]
[EventType "tourn"]
[EventCountry "HUN"]
[SourceTitle "playchess.com"]
[Source "ChessBase"]
[SourceQuality "1"]
[TimeControl "5400+30"]

{[%evp 11,20,33,28,22,33,31,25,0,33,14,16]} 1. e4 {[%emt 0:00:11]} e6 {[%emt 0:00:09]} 2. d4 {[%emt 0:00:15]} d5 {[%emt 0:00:10]} 3. exd5 {[%emt 0:00:23]} exd5 {[%emt 0:00:10]} 4. Nf3 {[%emt 0:00:14]} Bd6 {[%emt 0:00:47]} 5. c4 {[%emt 0:00:44]} dxc4 {[%emt 0:00:29]} 6. Bxc4 {[%emt 0:00:34]} Nf6 {[%emt 0:00:25]} 7. Qe2+ {[%emt 0:00:43]} Qe7 {[%emt 0:00:48]} 8. Qxe7+ {[%emt 0:00:46]} Kxe7 {[%emt 0:00:50]} 9. Nc3 {[%emt 0:00:25]} Be6 {[%emt 0:00:51]} 10. Bxe6 {[%emt 0:00:45]} fxe6 {[%emt 0:00:16] A rather calm draw.   Weighted Error Value: White=0.11 (very precise) /Black=0.10 (very precise) .  Inaccurate:     	---       	Black=1      OK:         	White=1     	Black=1} 1/2-1/2